[Event "Titled Tuesday Blitz August 3 2021"]
[White "Tokhirjonova, Gulrukhbegim"]
[Black "Ozen, Bahadir"]
[WhiteFideId "14203626"]
[BlackFideId "6337058"]
[WhiteElo "2236"]
[BlackElo "2503"]
[Result "1/2-1/2"]
[Round "04"]
[TimeControl "180+1"]
[Date "2021.08.03"]
[WhiteClock "0:00:21"]
[BlackClock "0:00:08"]

1. e4 {[%clk 0:03:00]}  c6 {[%clk 0:03:00]} 2. Nc3 {[%clk 0:02:52]}  d5 {[%clk 0:03:00]} 3. Nf3 {[%clk 0:02:52]}  dxe4 {[%clk 0:02:57]} 4. Nxe4 {[%clk 0:02:53]}  Nf6 {[%clk 0:02:57]} 5. Nxf6+ {[%clk 0:02:48]}  exf6 {[%clk 0:02:58]} 6. d4 {[%clk 0:02:49]}  Bd6 {[%clk 0:02:57]} 7. Be2 {[%clk 0:02:49]}  O-O {[%clk 0:02:56]} 8. O-O {[%clk 0:02:49]}  Re8 {[%clk 0:02:54]} 9. h3 {[%clk 0:02:50]}  Nd7 {[%clk 0:02:46]} 10. c4 {[%clk 0:02:49]}  Nf8 {[%clk 0:02:43]} 11. Be3 {[%clk 0:02:47]}  Ng6 {[%clk 0:02:42]} 12. Re1 {[%clk 0:02:41]}  Bd7 {[%clk 0:02:38]} 13. Bf1 {[%clk 0:02:41]}  Qc7 {[%clk 0:02:33]} 14. a3 {[%clk 0:02:40]}  Rad8 {[%clk 0:02:28]} 15. Rc1 {[%clk 0:02:40]}  Bf4 {[%clk 0:02:19]} 16. b4 {[%clk 0:02:38]}  Bf5 {[%clk 0:02:08]} 17. Qb3 {[%clk 0:02:32]}  a6 {[%clk 0:02:06]} 18. b5 {[%clk 0:02:23]}  axb5 {[%clk 0:02:05]} 19. cxb5 {[%clk 0:02:21]}  Be4 {[%clk 0:02:03]} 20. Nd2 {[%clk 0:02:13]}  Bd5 {[%clk 0:02:01]} 21. Bc4 {[%clk 0:02:01]}  Bxe3 {[%clk 0:01:48]} 22. fxe3 {[%clk 0:01:59]}  Bxc4 {[%clk 0:01:36]} 23. Qxc4 {[%clk 0:01:58]}  Qg3 {[%clk 0:01:26]} 24. Nf1 {[%clk 0:01:57]}  Qd6 {[%clk 0:01:24]} 25. bxc6 {[%clk 0:01:57]}  bxc6 {[%clk 0:01:25]} 26. a4 {[%clk 0:01:53]}  Ne7 {[%clk 0:01:24]} 27. a5 {[%clk 0:01:48]}  Ra8 {[%clk 0:01:22]} 28. a6 {[%clk 0:01:47]}  Nd5 {[%clk 0:01:21]} 29. Qxc6 {[%clk 0:01:41]}  Qxc6 {[%clk 0:01:21]} 30. Rxc6 {[%clk 0:01:42]}  Nb4 {[%clk 0:01:21]} 31. Rb6 {[%clk 0:01:36]}  Nxa6 {[%clk 0:01:20]} 32. Rc1 {[%clk 0:01:36]}  Reb8 {[%clk 0:01:14]} 33. Rxb8+ {[%clk 0:01:24]}  Rxb8 {[%clk 0:01:15]} 34. d5 {[%clk 0:01:24]}  f5 {[%clk 0:01:04]} 35. Ng3 {[%clk 0:01:14]}  g6 {[%clk 0:01:03]} 36. e4 {[%clk 0:01:14]}  Rd8 {[%clk 0:00:58]} 37. exf5 {[%clk 0:00:50]}  Kg7 {[%clk 0:00:56]} 38. fxg6 {[%clk 0:00:50]}  hxg6 {[%clk 0:00:57]} 39. Rd1 {[%clk 0:00:48]}  Kf6 {[%clk 0:00:54]} 40. d6 {[%clk 0:00:44]}  Ke5 {[%clk 0:00:45]} 41. Rf1 {[%clk 0:00:27]}  f5 {[%clk 0:00:44]} 42. h4 {[%clk 0:00:27]}  Rxd6 {[%clk 0:00:35]} 43. h5 {[%clk 0:00:27]}  f4 {[%clk 0:00:34]} 44. Re1+ {[%clk 0:00:27]}  Kd5 {[%clk 0:00:23]} 45. Ne4 {[%clk 0:00:25]}  Re6 {[%clk 0:00:14]} 46. Nc3+ {[%clk 0:00:25]}  Kd6 {[%clk 0:00:15]} 47. Ne4+ {[%clk 0:00:19]}  Ke7 {[%clk 0:00:14]} 48. h6 {[%clk 0:00:19]}  Kf8 {[%clk 0:00:12]} 49. Kf2 {[%clk 0:00:19]}  Kg8 {[%clk 0:00:09]} 50. Kf3 {[%clk 0:00:17]}  Nc5 {[%clk 0:00:09]} 51. Re2 {[%clk 0:00:15]}  Nxe4 {[%clk 0:00:08]} 52. Rxe4 {[%clk 0:00:16]}  Rxe4 {[%clk 0:00:08]} 53. Kxe4 {[%clk 0:00:17]}  Kh7 {[%clk 0:00:08]} 54. Kxf4 {[%clk 0:00:18]}  Kxh6 {[%clk 0:00:09]} 55. Kg4 {[%clk 0:00:18]}  g5 {[%clk 0:00:04]} 56. g3 {[%clk 0:00:18]}  Kg6 {[%clk 0:00:04]} 57. Kf3 {[%clk 0:00:18]}  Kf5 {[%clk 0:00:04]} 58. g4+ {[%clk 0:00:19]}  Ke5 {[%clk 0:00:04]} 59. Ke3 {[%clk 0:00:19]}  Kd5 {[%clk 0:00:05]} 60. Kd3 {[%clk 0:00:20]}  Ke5 {[%clk 0:00:06]} 61. Ke3 {[%clk 0:00:20]}  Kd5 {[%clk 0:00:07]} 62. Kd3 {[%clk 0:00:20]}  Ke5 {[%clk 0:00:08]} 63. Ke3 {[%clk 0:00:21]} 1/2-1/2


[Site "https://www.chess.com"]

[Event "Titled Tuesday Blitz August 3 2021"]
[White "Tologon tegin, Semetei"]
[Black "Indjic, Aleksandar"]
[WhiteFideId "13800574"]
[BlackFideId "911925"]
[WhiteElo "2531"]
[BlackElo "2851"]
[Result "0-1"]
[Round "04"]
[TimeControl "180+1"]
[Date "2021.08.03"]
[WhiteClock "0:00:06"]
[BlackClock "0:00:56"]

1. e4 {[%clk 0:03:00]}  g6 {[%clk 0:03:00]} 2. d4 {[%clk 0:03:00]}  Bg7 {[%clk 0:03:01]} 3. Nf3 {[%clk 0:02:59]}  a6 {[%clk 0:03:00]} 4. a4 {[%clk 0:02:52]}  d6 {[%clk 0:03:00]} 5. h3 {[%clk 0:02:52]}  Nf6 {[%clk 0:02:58]} 6. Nc3 {[%clk 0:02:52]}  Nc6 {[%clk 0:02:59]} 7. Be3 {[%clk 0:02:50]}  O-O {[%clk 0:02:58]} 8. Be2 {[%clk 0:02:42]}  e5 {[%clk 0:02:58]} 9. Qd2 {[%clk 0:02:32]}  Re8 {[%clk 0:02:56]} 10. dxe5 {[%clk 0:02:28]}  Nxe5 {[%clk 0:02:51]} 11. O-O {[%clk 0:02:09]}  Bd7 {[%clk 0:02:50]} 12. Rad1 {[%clk 0:02:06]}  Bc6 {[%clk 0:02:48]} 13. Nxe5 {[%clk 0:02:06]}  Rxe5 {[%clk 0:02:48]} 14. f3 {[%clk 0:02:03]}  Re8 {[%clk 0:02:48]} 15. Bc4 {[%clk 0:01:54]}  Qd7 {[%clk 0:02:44]} 16. Bd4 {[%clk 0:01:51]}  Bxa4 {[%clk 0:02:27]} 17. Nxa4 {[%clk 0:01:26]}  Qxa4 {[%clk 0:02:25]} 18. Qc3 {[%clk 0:01:14]}  Qc6 {[%clk 0:02:08]} 19. Qb3 {[%clk 0:01:00]}  Re7 {[%clk 0:02:01]} 20. Kh2 {[%clk 0:00:48]}  Rb8 {[%clk 0:01:59]} 21. Rfe1 {[%clk 0:00:26]}  Nh5 {[%clk 0:01:51]} 22. Bxg7 {[%clk 0:00:25]}  Kxg7 {[%clk 0:01:47]} 23. Bd5 {[%clk 0:00:25]}  Qb5 {[%clk 0:01:48]} 24. Qc3+ {[%clk 0:00:25]}  Nf6 {[%clk 0:01:32]} 25. Bb3 {[%clk 0:00:22]}  Qe5+ {[%clk 0:01:30]} 26. Qxe5 {[%clk 0:00:21]}  Rxe5 {[%clk 0:01:29]} 27. Rd4 {[%clk 0:00:18]}  Rbe8 {[%clk 0:01:28]} 28. Red1 {[%clk 0:00:19]}  R8e7 {[%clk 0:01:27]} 29. Kg1 {[%clk 0:00:18]}  h5 {[%clk 0:01:26]} 30. h4 {[%clk 0:00:17]}  Rc5 {[%clk 0:01:22]} 31. Ra1 {[%clk 0:00:16]}  Nd7 {[%clk 0:01:22]} 32. Rb4 {[%clk 0:00:16]}  Nb6 {[%clk 0:01:19]} 33. Kf2 {[%clk 0:00:16]}  f5 {[%clk 0:01:13]} 34. exf5 {[%clk 0:00:15]}  gxf5 {[%clk 0:01:14]} 35. Rd4 {[%clk 0:00:10]}  Kf6 {[%clk 0:01:12]} 36. Rd2 {[%clk 0:00:09]}  Nd7 {[%clk 0:01:10]} 37. Rad1 {[%clk 0:00:08]}  Ne5 {[%clk 0:01:10]} 38. Rd4 {[%clk 0:00:08]}  Ng6 {[%clk 0:01:08]} 39. Rb4 {[%clk 0:00:08]}  b5 {[%clk 0:01:06]} 40. c3 {[%clk 0:00:08]}  Rce5 {[%clk 0:01:01]} 41. Rd2 {[%clk 0:00:08]}  c5 {[%clk 0:00:55]} 42. Rxd6+ {[%clk 0:00:06]}  Kg7 {[%clk 0:00:56]} 0-1


[Site "https://www.chess.com"]

[Event "Titled Tuesday Blitz August 3 2021"]
[White "Vakhlamov, Igor L."]
[Black "Turayev, Shahruh"]
[WhiteFideId "24126748"]
[BlackFideId "14003856"]
[WhiteElo "2416"]
[BlackElo "2472"]
[Result "1-0"]
[Round "04"]
[TimeControl "180+1"]
[Date "2021.08.03"]
[WhiteClock "0:00:39"]
[BlackClock "0:00:11"]

1. e4 {[%clk 0:03:00]}  d5 {[%clk 0:02:56]} 2. exd5 {[%clk 0:03:00]}  Qxd5 {[%clk 0:02:57]} 3. Nc3 {[%clk 0:03:01]}  Qa5 {[%clk 0:02:57]} 4. d4 {[%clk 0:03:02]}  Nf6 {[%clk 0:02:57]} 5. Nf3 {[%clk 0:02:54]}  Nc6 {[%clk 0:02:57]} 6. d5 {[%clk 0:02:50]}  Nb4 {[%clk 0:02:56]} 7. Bd2 {[%clk 0:02:49]}  Bf5 {[%clk 0:02:35]} 8. Nd4 {[%clk 0:02:35]}  Bg4 {[%clk 0:02:28]} 9. f3 {[%clk 0:02:30]}  Qb6 {[%clk 0:02:17]} 10. Ndb5 {[%clk 0:02:21]}  Bd7 {[%clk 0:01:53]} 11. Na4 {[%clk 0:02:09]}  Qa5 {[%clk 0:01:53]} 12. a3 {[%clk 0:02:08]}  Bxb5 {[%clk 0:01:09]} 13. axb4 {[%clk 0:01:06]}  Qa6 {[%clk 0:01:08]} 14. Nc5 {[%clk 0:01:04]}  Qb6 {[%clk 0:01:08]} 15. c4 {[%clk 0:01:03]}  Ba6 {[%clk 0:01:02]} 16. Nxa6 {[%clk 0:00:58]}  bxa6 {[%clk 0:01:03]} 17. c5 {[%clk 0:00:58]}  Qb8 {[%clk 0:01:00]} 18. Qa4+ {[%clk 0:00:58]}  Kd8 {[%clk 0:00:54]} 19. Qxa6 {[%clk 0:00:56]}  Nxd5 {[%clk 0:00:51]} 20. Bb5 {[%clk 0:00:51]}  e6 {[%clk 0:00:44]} 21. O-O {[%clk 0:00:42]}  Qc8 {[%clk 0:00:24]} 22. Qc6 {[%clk 0:00:42]}  Ke7 {[%clk 0:00:18]} 23. Rfe1 {[%clk 0:00:41]}  Nf6 {[%clk 0:00:14]} 24. Bg5 {[%clk 0:00:38]}  h6 {[%clk 0:00:13]} 25. Bh4 {[%clk 0:00:38]}  g5 {[%clk 0:00:13]} 26. Bg3 {[%clk 0:00:38]}  Bg7 {[%clk 0:00:12]} 27. Bd6+ {[%clk 0:00:38]}  cxd6 {[%clk 0:00:11]} 28. Qxd6# {[%clk 0:00:39]} 1-0


[Site "https://www.chess.com"]

[Event "Titled Tuesday Blitz August 3 2021"]
[White "Vokhidov, Shamsiddin"]
[Black "Firat, Burak"]
[WhiteFideId "14204223"]
[BlackFideId "6305881"]
[WhiteElo "2572"]
[BlackElo "2531"]
[Result "1-0"]
[Round "04"]
[TimeControl "180+1"]
[Date "2021.08.03"]
[WhiteClock "0:02:31"]
[BlackClock "0:01:12"]

1. e4 {[%clk 0:03:00]}  e5 {[%clk 0:02:58]} 2. Nf3 {[%clk 0:03:01]}  Nf6 {[%clk 0:02:58]} 3. Nc3 {[%clk 0:03:00]}  Nc6 {[%clk 0:02:57]} 4. Be2 {[%clk 0:03:00]}  d5 {[%clk 0:02:53]} 5. exd5 {[%clk 0:03:01]}  Nxd5 {[%clk 0:02:54]} 6. O-O {[%clk 0:03:01]}  Nxc3 {[%clk 0:02:52]} 7. bxc3 {[%clk 0:03:02]}  Bd6 {[%clk 0:02:43]} 8. d4 {[%clk 0:03:00]}  exd4 {[%clk 0:02:33]} 9. cxd4 {[%clk 0:03:01]}  O-O {[%clk 0:02:33]} 10. c3 {[%clk 0:03:01]}  Bf5 {[%clk 0:02:29]} 11. Bd3 {[%clk 0:03:00]}  Qd7 {[%clk 0:02:24]} 12. Rb1 {[%clk 0:02:59]}  b6 {[%clk 0:02:12]} 13. Rb5 {[%clk 0:02:59]}  Bxd3 {[%clk 0:01:54]} 14. Qxd3 {[%clk 0:02:59]}  h6 {[%clk 0:01:54]} 15. Rh5 {[%clk 0:02:52]}  f5 {[%clk 0:01:44]} 16. Nh4 {[%clk 0:02:46]}  Ne7 {[%clk 0:01:33]} 17. Qf3 {[%clk 0:02:36]}  Qe6 {[%clk 0:01:21]} 18. g3 {[%clk 0:02:32]}  Rf7 {[%clk 0:01:12]} 19. Qxa8+ {[%clk 0:02:31]} 1-0


[Site "https://www.chess.com"]

[Event "Titled Tuesday Blitz August 3 2021"]
[White "Willow, Jonah B"]
[Black "Pacheco Lugo, Alejandro Jose"]
[WhiteFideId "438804"]
[BlackFideId "3903745"]
[WhiteElo "2261"]
[BlackElo "2125"]
[Result "0-1"]
[Round "04"]
[TimeControl "180+1"]
[Date "2021.08.03"]
[WhiteClock "0:00:29"]
[BlackClock "0:01:01"]

1. e4 {[%clk 0:03:00]}  c5 {[%clk 0:02:59]} 2. Nf3 {[%clk 0:02:59]}  d6 {[%clk 0:02:59]} 3. d4 {[%clk 0:02:59]}  cxd4 {[%clk 0:03:00]} 4. Qxd4 {[%clk 0:03:00]}  Nc6 {[%clk 0:03:00]} 5. Bb5 {[%clk 0:02:59]}  a6 {[%clk 0:03:00]} 6. Bxc6+ {[%clk 0:02:57]}  bxc6 {[%clk 0:03:01]} 7. c4 {[%clk 0:02:58]}  e5 {[%clk 0:03:00]} 8. Qd3 {[%clk 0:02:58]}  Ne7 {[%clk 0:03:00]} 9. Nc3 {[%clk 0:02:57]}  Ng6 {[%clk 0:03:00]} 10. Bg5 {[%clk 0:02:52]}  f6 {[%clk 0:02:56]} 11. Be3 {[%clk 0:02:52]}  Be7 {[%clk 0:02:56]} 12. O-O {[%clk 0:02:51]}  O-O {[%clk 0:02:56]} 13. Rfd1 {[%clk 0:02:46]}  Qe8 {[%clk 0:02:54]} 14. Na4 {[%clk 0:02:33]}  Be6 {[%clk 0:02:52]} 15. b3 {[%clk 0:02:31]}  Rd8 {[%clk 0:02:49]} 16. c5 {[%clk 0:02:26]}  d5 {[%clk 0:02:48]} 17. Qxa6 {[%clk 0:02:24]}  d4 {[%clk 0:02:42]} 18. Bd2 {[%clk 0:02:17]}  Bg4 {[%clk 0:02:31]} 19. Qc4+ {[%clk 0:02:08]}  Kh8 {[%clk 0:02:30]} 20. Ba5 {[%clk 0:02:02]}  Ra8 {[%clk 0:02:22]} 21. b4 {[%clk 0:01:53]}  Bxf3 {[%clk 0:02:20]} 22. gxf3 {[%clk 0:01:52]}  Nf4 {[%clk 0:02:00]} 23. Qf1 {[%clk 0:01:19]}  Qh5 {[%clk 0:01:59]} 24. Rd3 {[%clk 0:01:02]}  f5 {[%clk 0:01:48]} 25. Nb6 {[%clk 0:00:56]}  Rf6 {[%clk 0:01:42]} 26. Kh1 {[%clk 0:00:46]}  Rh6 {[%clk 0:01:25]} 27. Qg1 {[%clk 0:00:45]}  Nxd3 {[%clk 0:01:23]} 28. Nxa8 {[%clk 0:00:43]}  Rg6 {[%clk 0:01:22]} 29. Qxg6 {[%clk 0:00:29]}  Qxg6 {[%clk 0:01:21]} 30. Rf1 {[%clk 0:00:30]}  Qh5 {[%clk 0:01:01]} 31. Kg2 {[%clk 0:00:29]}  Nf4+ {[%clk 0:01:01]} 0-1


[Site "https://www.chess.com"]

[Event "Titled Tuesday Blitz August 3 2021"]
[White "Xiong, Jeffery"]
[Black "Levitskiy, Andrey"]
[WhiteFideId "2047640"]
[BlackFideId "14132885"]
[WhiteElo "2962"]
[BlackElo "2553"]
[Result "1-0"]
[Round "04"]
[TimeControl "180+1"]
[Date "2021.08.03"]
[WhiteClock "0:00:49"]
[BlackClock "0:00:02"]

1. c4 {[%clk 0:03:00]}  e5 {[%clk 0:02:59]} 2. Nc3 {[%clk 0:03:00]}  Bb4 {[%clk 0:02:59]} 3. g3 {[%clk 0:02:57]}  Bxc3 {[%clk 0:02:59]} 4. bxc3 {[%clk 0:02:57]}  d6 {[%clk 0:02:56]} 5. Bg2 {[%clk 0:02:57]}  Nc6 {[%clk 0:02:55]} 6. Rb1 {[%clk 0:02:54]}  Nge7 {[%clk 0:02:52]} 7. d3 {[%clk 0:02:53]}  Rb8 {[%clk 0:02:49]} 8. f4 {[%clk 0:02:50]}  O-O {[%clk 0:02:43]} 9. Nf3 {[%clk 0:02:51]}  d5 {[%clk 0:02:26]} 10. Nxe5 {[%clk 0:02:28]}  Nxe5 {[%clk 0:02:20]} 11. fxe5 {[%clk 0:02:29]}  dxc4 {[%clk 0:02:20]} 12. Ba3 {[%clk 0:02:29]}  Re8 {[%clk 0:02:05]} 13. d4 {[%clk 0:02:12]}  Nd5 {[%clk 0:01:34]} 14. Qd2 {[%clk 0:02:12]}  f6 {[%clk 0:00:52]} 15. e4 {[%clk 0:01:44]}  fxe5 {[%clk 0:00:51]} 16. exd5 {[%clk 0:01:44]}  exd4+ {[%clk 0:00:52]} 17. Kf2 {[%clk 0:01:44]}  Qf6+ {[%clk 0:00:49]} 18. Qf4 {[%clk 0:01:42]}  Qa6 {[%clk 0:00:22]} 19. Rhe1 {[%clk 0:01:42]}  Bf5 {[%clk 0:00:16]} 20. Qxf5 {[%clk 0:01:04]}  Qxa3 {[%clk 0:00:12]} 21. Kg1 {[%clk 0:01:04]}  Qxc3 {[%clk 0:00:09]} 22. Rxe8+ {[%clk 0:01:04]}  Rxe8 {[%clk 0:00:10]} 23. Rf1 {[%clk 0:01:04]}  Qe3+ {[%clk 0:00:08]} 24. Kh1 {[%clk 0:01:04]}  h6 {[%clk 0:00:08]} 25. d6 {[%clk 0:01:03]}  cxd6 {[%clk 0:00:06]} 26. Bd5+ {[%clk 0:01:01]}  Kh8 {[%clk 0:00:06]} 27. Bxc4 {[%clk 0:01:01]}  Qe5 {[%clk 0:00:03]} 28. Qf3 {[%clk 0:00:54]}  a6 {[%clk 0:00:03]} 29. Qxb7 {[%clk 0:00:51]}  Qc5 {[%clk 0:00:02]} 30. Bd3 {[%clk 0:00:51]}  d5 {[%clk 0:00:02]} 31. Qxa6 {[%clk 0:00:49]}  Qc3 {[%clk 0:00:02]} 32. Qg6 {[%clk 0:00:49]} 1-0


[Site "https://www.chess.com"]

[Event "Titled Tuesday Blitz August 3 2021"]
[White "Zhigalko, Sergei"]
[Black "Karacsonyi, Gellert"]
[WhiteFideId "13502956"]
[BlackFideId "764620"]
[WhiteElo "2662"]
[BlackElo "2192"]
[Result "1-0"]
[Round "04"]
[TimeControl "180+1"]
[Date "2021.08.03"]
[WhiteClock "0:01:42"]
[BlackClock "0:00:56"]

1. e4 {[%clk 0:03:00]}  c5 {[%clk 0:02:59]} 2. Nf3 {[%clk 0:03:01]}  Nc6 {[%clk 0:03:00]} 3. c3 {[%clk 0:03:01]}  Nf6 {[%clk 0:02:59]} 4. e5 {[%clk 0:03:01]}  Nd5 {[%clk 0:03:00]} 5. Bc4 {[%clk 0:03:01]}  Nb6 {[%clk 0:02:59]} 6. Bb3 {[%clk 0:03:01]}  d5 {[%clk 0:02:57]} 7. exd6 {[%clk 0:03:02]}  Qxd6 {[%clk 0:02:56]} 8. O-O {[%clk 0:03:01]}  e6 {[%clk 0:02:53]} 9. d4 {[%clk 0:03:01]}  Be7 {[%clk 0:02:50]} 10. Be3 {[%clk 0:02:49]}  cxd4 {[%clk 0:02:47]} 11. cxd4 {[%clk 0:02:50]}  Nd5 {[%clk 0:02:47]} 12. Nc3 {[%clk 0:02:50]}  Nxc3 {[%clk 0:02:45]} 13. bxc3 {[%clk 0:02:50]}  O-O {[%clk 0:02:45]} 14. Re1 {[%clk 0:02:32]}  Bf6 {[%clk 0:02:45]} 15. Ng5 {[%clk 0:02:30]}  Qd8 {[%clk 0:02:36]} 16. Qh5 {[%clk 0:02:27]}  Bxg5 {[%clk 0:02:30]} 17. Bxg5 {[%clk 0:02:27]}  Qa5 {[%clk 0:02:30]} 18. Qh4 {[%clk 0:02:06]}  Qxc3 {[%clk 0:02:24]} 19. Rad1 {[%clk 0:02:05]}  h6 {[%clk 0:01:48]} 20. Bxh6 {[%clk 0:01:57]}  gxh6 {[%clk 0:01:49]} 21. Re3 {[%clk 0:01:55]}  Qa5 {[%clk 0:01:28]} 22. Qxh6 {[%clk 0:01:51]}  Ne7 {[%clk 0:00:56]} 23. Rh3 {[%clk 0:01:42]} 1-0


[Site "https://www.chess.com"]

[Event "Titled Tuesday Blitz August 3 2021"]
[White "Zverev, Lev"]
[Black "Grabinsky, Aaron"]
[WhiteFideId "24250775"]
[BlackFideId "2087090"]
[WhiteElo "2528"]
[BlackElo "2847"]
[Result "0-1"]
[Round "04"]
[TimeControl "180+1"]
[Date "2021.08.03"]
[WhiteClock "0:00:04"]
[BlackClock "0:00:50"]

1. e4 {[%clk 0:02:59]}  e6 {[%clk 0:02:59]} 2. d4 {[%clk 0:02:57]}  d5 {[%clk 0:03:00]} 3. Nc3 {[%clk 0:02:57]}  Nc6 {[%clk 0:03:00]} 4. Nf3 {[%clk 0:02:56]}  Nf6 {[%clk 0:03:01]} 5. Bg5 {[%clk 0:02:54]}  Be7 {[%clk 0:03:01]} 6. exd5 {[%clk 0:02:54]}  exd5 {[%clk 0:03:00]} 7. Bd3 {[%clk 0:02:53]}  Bg4 {[%clk 0:03:00]} 8. Ne2 {[%clk 0:02:47]}  Bxf3 {[%clk 0:02:59]} 9. gxf3 {[%clk 0:02:47]}  O-O {[%clk 0:02:56]} 10. Rg1 {[%clk 0:02:45]}  g6 {[%clk 0:02:55]} 11. Qd2 {[%clk 0:02:45]}  Nb4 {[%clk 0:02:52]} 12. O-O-O {[%clk 0:02:35]}  Nxd3+ {[%clk 0:02:50]} 13. Qxd3 {[%clk 0:02:36]}  Nh5 {[%clk 0:02:44]} 14. Bh6 {[%clk 0:02:24]}  Re8 {[%clk 0:02:41]} 15. Nc3 {[%clk 0:02:12]}  c6 {[%clk 0:02:39]} 16. Rg2 {[%clk 0:01:41]}  Bf6 {[%clk 0:02:34]} 17. Rdg1 {[%clk 0:01:36]}  Qd7 {[%clk 0:02:34]} 18. Ne2 {[%clk 0:01:28]}  Bg7 {[%clk 0:02:24]} 19. Bxg7 {[%clk 0:01:22]}  Kxg7 {[%clk 0:02:24]} 20. f4 {[%clk 0:01:18]}  Qe6 {[%clk 0:02:19]} 21. f3 {[%clk 0:00:48]}  Qe3+ {[%clk 0:02:16]} 22. Qxe3 {[%clk 0:00:48]}  Rxe3 {[%clk 0:02:17]} 23. Rf2 {[%clk 0:00:48]}  Rae8 {[%clk 0:02:15]} 24. Kd2 {[%clk 0:00:49]}  Kf6 {[%clk 0:02:05]} 25. Ng3 {[%clk 0:00:47]}  Nxf4 {[%clk 0:02:05]} 26. Ne4+ {[%clk 0:00:47]}  dxe4 {[%clk 0:01:59]} 27. Kxe3 {[%clk 0:00:47]}  Nh3 {[%clk 0:01:59]} 28. fxe4+ {[%clk 0:00:41]}  Nxf2 {[%clk 0:01:58]} 29. Kxf2 {[%clk 0:00:40]}  Rxe4 {[%clk 0:01:58]} 30. c3 {[%clk 0:00:38]}  Kf5 {[%clk 0:01:53]} 31. Rd1 {[%clk 0:00:34]}  Rf4+ {[%clk 0:01:48]} 32. Kg3 {[%clk 0:00:33]}  Rg4+ {[%clk 0:01:47]} 33. Kf3 {[%clk 0:00:33]}  h5 {[%clk 0:01:33]} 34. Re1 {[%clk 0:00:31]}  Kf6 {[%clk 0:01:30]} 35. Re8 {[%clk 0:00:30]}  Rg5 {[%clk 0:01:26]} 36. c4 {[%clk 0:00:13]}  Rf5+ {[%clk 0:01:21]} 37. Ke3 {[%clk 0:00:10]}  g5 {[%clk 0:01:19]} 38. Rb8 {[%clk 0:00:08]}  b5 {[%clk 0:01:16]} 39. Rc8 {[%clk 0:00:02]}  bxc4 {[%clk 0:01:12]} 40. Rxc6+ {[%clk 0:00:03]}  Kg7 {[%clk 0:01:11]} 41. Rxc4 {[%clk 0:00:04]}  g4 {[%clk 0:01:07]} 42. Rc2 {[%clk 0:00:03]}  Rf3+ {[%clk 0:01:04]} 43. Ke4 {[%clk 0:00:03]}  f5+ {[%clk 0:00:59]} 44. Ke5 {[%clk 0:00:03]}  Kg6 {[%clk 0:00:59]} 45. Rc6+ {[%clk 0:00:03]}  Kg5 {[%clk 0:00:59]} 46. d5 {[%clk 0:00:04]}  Re3+ {[%clk 0:00:59]} 47. Kd4 {[%clk 0:00:04]}  f4 {[%clk 0:00:57]} 48. d6 {[%clk 0:00:03]}  Re8 {[%clk 0:00:57]} 49. Rc5+ {[%clk 0:00:02]}  Kh4 {[%clk 0:00:55]} 50. Rf5 {[%clk 0:00:02]}  f3 {[%clk 0:00:51]} 51. Kd5 {[%clk 0:00:02]}  Kh3 {[%clk 0:00:50]} 52. Rxh5+ {[%clk 0:00:01]}  Kg2 {[%clk 0:00:51]} 53. d7 {[%clk 0:00:02]}  Rd8 {[%clk 0:00:50]} 54. Kd6 {[%clk 0:00:02]}  f2 {[%clk 0:00:48]} 55. Rf5 {[%clk 0:00:02]}  f1=Q {[%clk 0:00:48]} 56. Rxf1 {[%clk 0:00:03]}  Kxf1 {[%clk 0:00:49]} 57. Kc7 {[%clk 0:00:04]}  Rxd7+ {[%clk 0:00:49]} 58. Kxd7 {[%clk 0:00:05]}  Kg2 {[%clk 0:00:49]} 59. b4 {[%clk 0:00:03]}  Kxh2 {[%clk 0:00:49]} 60. b5 {[%clk 0:00:04]}  g3 {[%clk 0:00:50]} 61. Kc7 {[%clk 0:00:03]}  g2 {[%clk 0:00:50]} 62. Kb7 {[%clk 0:00:04]}  g1=Q {[%clk 0:00:50]} 63. a4 {[%clk 0:00:04]}  Qb6+ {[%clk 0:00:50]} 0-1


[Site "https://www.chess.com"]